{"text_format":"3","workbook":"xlsx","n_sheets":3,"sheets":["Ark1","Ark2","Ark3"],"not_rendered":{"external_links":1},"read":"whole","date_system":"1900"}

{"sheet":"Ark1","index":0,"n_rows":32,"n_cols":17,"rows_kept":32,"merged":[[1,15,1,16]]}
["Modalen"]
["Funksjonskategori","Systemnavn","Enhet/arkivskaper","Startår","Sluttår","Vurdert jf. B/K?","Deponert","Aktivt i kommunen?","Avsluttet i kommunen?  Både deponerte og de som ligger på server i kommunen.","Ukjent status?","Tapt?","Merknader/Informasjon om systemet",{"$nulls":3},"Summering etter funksjon"]
["01 - Sosialtjeneste","Acos Sosial","NAV",2014,{"$nulls":3},"Ja",{"$nulls":4},"Deponerte system:",{"$f":"COUNTIF(G:G,\"Ja\")","v":1},null,"1- Sosialtjeneste",{"$f":"COUNTIF(A:A,\"01 - sosialtjeneste\")","v":1}]
["02 - Bygg - oppmåling - eiendom","GISLine","Teknisk",2014,{"$nulls":3},"Ja",{"$nulls":4},"Aktive system:",{"$f":"COUNTIF(H:H,\"Ja\")","v":13},null,"2 - Bygg - oppmåling - eiendom",{"$f":"COUNTIF(A:A,\"02 - Bygg - oppmåling - eiendom\")","v":2}]
["02 - Bygg - oppmåling - eiendom","V/G Innsyn","Kartdata",{"$nulls":5},"Ja",{"$nulls":3},"Avsluttede system:",{"$f":"COUNTIF(I:I,\"Ja\")","v":17},null,"3 -Teknisk drift og anlegg",{"$f":"COUNTIF(A:A,\"03 -Teknisk drift og anlegg\")","v":0}]
["04 - Økonomi","Visma Enterprise","Rådmann",2009,{"$nulls":3},"Ja",{"$nulls":4},"Ukjent status:",{"$f":"COUNTIF(J:J,\"Ja\")","v":0},null,"4 - Økonomi",{"$f":"COUNTIF(A:A,\"04 - Økonomi\")","v":6}]
["04 - Økonomi","Visma Unique","Rådmann",2003,2009,{"$nulls":3},"Ja",{"$nulls":3},"Tapt:",{"$f":"COUNTIF(K:K,\"Ja\")","v":2},null,"5 - Forliksråd, overformynderi",{"$f":"COUNTIF(A:A,\"05 - Forliksråd, overformynderi\")","v":0}]
["04 - Økonomi","Uni Økonomi","Rådmann",null,2003,{"$nulls":3},"Ja",{"$nulls":6},"6 -Skole",{"$f":"COUNTIF(A:A,\"06 -Skole\")","v":3}]
["04 - Økonomi","Kommunale avgifter",{"$nulls":6},"Ja",{"$nulls":3},"Antall arkiv som er avsluttet, men ikke deponert:",{"$f":"N5-N3","v":16},null,"7 - Helsetjeneste",{"$f":"COUNTIF(A:A,\"07 - Helsetjeneste\")","v":3}]
["04 - Økonomi","Unique Kommfakt","Fakturering",{"$nulls":5},"Ja",{"$nulls":6},"8 - Arkivtjeneste - sak arkiv",{"$f":"COUNTIF(A:A,\"08 - Arkivtjeneste - sak arkiv\")","v":4}]
["04 - Økonomi","Standard skatteregnskap Skatt","Skatt",{"$nulls":5},"Ja",{"$nulls":3},"Total (Aktive, avsluttede, ukjent):",{"$f":"SUM(N4,N5,N6)","v":30},null,"9 - Intern admin - under dette personal",{"$f":"COUNTIF(A:A,\"09 - Intern admin - under dette personal\")","v":3}]
["06 -Skole","Feide","Skole",{"$nulls":4},"Ja",{"$nulls":7},"10 - Barnevern",{"$f":"COUNTIF(A:A,\"10 - Barnevern\")","v":1}]
["06 -Skole","It's Learning","Skole",{"$nulls":4},"Ja",{"$nulls":7},"12 - Kirke",{"$f":"COUNTIF(A:A,\"12 - Kirke\")","v":0}]
["06 -Skole","Visma Flyt","Skole",{"$nulls":4},"Ja",{"$nulls":7},"13 - Barnehage",{"$f":"COUNTIF(A:A,\"13 - Barnehage\")","v":1}]
["07 - Helsetjeneste","Infodoc","Lege",2013,{"$nulls":3},"Ja",{"$nulls":7},"14 - Pleie og omsorg",{"$f":"COUNTIF(A:A,\"14 - Pleie og omsorg\")","v":2}]
["07 - Helsetjeneste","Winmed","Lege",null,2013,{"$nulls":3},"Ja",{"$nulls":6},"15 - Sentrale system - stat",{"$f":"COUNTIF(A:A,\"15 - Sentrale system - stat\")","v":1}]
["07 - Helsetjeneste","Infodoc","Lege",1999,{"$nulls":4},"Ja",{"$nulls":6},"16 - Flyktningtjeneste",{"$f":"COUNTIF(A:A,\"16 - Flyktningtjeneste\")","v":0}]
["08 - Arkivtjeneste - sak arkiv","Acos Websak","Sak/arkiv",2014,{"$nulls":3},"Ja",{"$nulls":3},"fullelektronisk",{"$nulls":3},"18 - Naturforvaltning",{"$f":"COUNTIF(A:A,\"18 - Naturforvaltning\")","v":0}]
["08 - Arkivtjeneste - sak arkiv","Acos Websak","Sak/arkiv",1999,2013,null,"Ja","Nei","Ja",{"$nulls":6},"19 - Valg og valgadministrasjon",{"$f":"COUNTIF(A:A,\"19 - Valg og valgadministrasjon\")","v":2}]
["08 - Arkivtjeneste - sak arkiv","Forum Winsak","Sak/arkiv",1995,1999,{"$nulls":3},"Ja",null,"Ja",{"$nulls":4},"20 - Kultur og idrett",{"$f":"COUNTIF(A:A,\"20 - Kultur og idrett\")","v":1}]
["08 - Arkivtjeneste - sak arkiv","HPM-maskiner","Sak/arkiv",1987,1993,{"$nulls":3},"Ja",null,"Ja"]
["09 - Intern admin - under dette personal","Unique Ansatt","Rådmann",null,2009,{"$nulls":3},"Ja"]
["09 - Intern admin - under dette personal","Visma Enterprise HRM","Rådmann",2009,{"$nulls":3},"Ja"]
["09 - Intern admin - under dette personal","Unique Ansatt","Lønn og personal",{"$nulls":5},"Ja"]
["10 - Barnevern","Acos Barnevern","Barnevernstjenesten",2007,{"$nulls":4},"Ja"]
["13 - Barnehage","Visma Barnehage","Barnehage",2009,{"$nulls":3},"Ja"]
["14 - Pleie og omsorg","CosDoc","Pleie og omsorg",2006,{"$nulls":3},"Ja"]
["14 - Pleie og omsorg","Notus","Pleie og omsorg",2010,{"$nulls":3},"Ja"]
["15 - Sentrale system - stat","Ajour","Landbruk",{"$nulls":5},"Ja"]
["19 - Valg og valgadministrasjon","EVA","Rådmann",2013,{"$nulls":3},"Ja"]
["19 - Valg og valgadministrasjon","Valg 2011 ErgoGroup","Rådmann",2011,2013,{"$nulls":3},"Ja"]
["20 - Kultur og idrett","Aleph","Bibliotektjenesten",{"$nulls":5},"Ja"]

{"sheet":"Ark2","index":1,"n_rows":0,"n_cols":0,"rows_kept":0}

{"sheet":"Ark3","index":2,"n_rows":0,"n_cols":0,"rows_kept":0}